Cogmind - Beta 16 @@@ ROGUE MODE // 2025.12.11 @ 02:36:04 Player: Trione Result: Destroyed by B4-WJH(j) with Overtuned Pulse Rifle Performance ------------- Evolutions (0) 0 Regions Visited (4) 800 Robots Destroyed (70) 350 Value Destroyed (1452) 1452 Prototype IDs (8) 160 Alien Tech Used (0) 0 Bonus (800) 800 TOTAL SCORE: 3562 Bonus ------- Registered with UFD 300 Met Optimus in HQ 500 Cogmind --------- Core Integrity 0/250 Matter 270/300 Energy 235/265 System Corruption 0% Temperature Critical (517) Movement Rolling (120) Ox2 Location -9/Scraptown Parts ------- > --- POWER (1) -------- Reinforced Ion Engine > --- PROPULSION (2) --- Armored Wheel Armored Wheel > --- UTILITY (2) ------ Large Storage Unit > --- WEAPON (2) ------- Battle Cannon Makeshift Spear > --- INVENTORY (15) --- Graviton Reactor Light Treads Improved Treads Small Matter Pod (50) Seismic Detector Expert System Medium Armor Plating A0-MCA's Component Scanner Heavy Riot Gun Light Cannon Battle Cannon EMP Blaster Grenade Launcher Heavy Missile Launcher Thermal Lance Peak State ------------ > --- POWER ------------ Reinforced Ion Engine > --- PROPULSION ------- Armored Wheel Armored Wheel > --- UTILITY ---------- Large Storage Unit Hardened Light Armor Plating > --- WEAPON ----------- Battle Cannon Thermal Lance > --- INVENTORY -------- Graviton Reactor Light Treads Improved Treads Small Matter Pod Seismic Detector Expert System Medium Armor Plating A0-MCA's Component Scanner Heavy Riot Gun Light Cannon Battle Cannon EMP Blaster Grenade Launcher Heavy Missile Launcher Makeshift Spear [Rating: 26] Favorites ----------- Power Reinforced Ion Engine Engine Reinforced Ion Engine Reactor Graviton Reactor Propulsion Light Treads Treads Light Treads Wheel Wheel Utility Large Storage Unit Device Seismic Detector Storage Large Storage Unit Protection Hardened Light Armor Plating Weapon Light Cannon Energy Gun Subdweller Laser Energy Cannon Beam Cannon Ballistic Gun Assault Rifle Ballistic Cannon Light Cannon Launcher Grenade Launcher Special Weapon Mining Laser Impact Weapon Makeshift Hammer Piercing Weapon Makeshift Spear Build | -11 -10 -10 -9 -9 ------- Run | Yrd Mat Sub Rec Scr Slots Evolved . | . . . . . Power . | . . . . . Propulsion . | . . . . . Utility . | . . . . . Weapon . | . . . . . Parts Attached 52 | 8 16 17 4 7 Power 7 | 1 3 1 . 2 Engine 6 | 1 3 1 . 1 Core . | . . . . . Reactor 1 | . . . . 1 Propulsion 14 | 2 5 2 2 3 Treads 6 | . 3 . 2 1 Leg . | . . . . . Wheel 8 | 2 2 2 . 2 Hover . | . . . . . Flight . | . . . . . Utility 11 | 2 3 4 2 . Device 3 | 1 1 1 . . Storage 4 | 1 2 1 . . Processor . | . . . . . Hackware . | . . . . . Protection 4 | . . 2 2 . Artifact . | . . . . . Weapon 20 | 3 5 10 . 2 Energy Gun 2 | 1 . 1 . . Energy Cannon 2 | . . 2 . . Ballistic Gun 2 | 2 . . . . Ballistic Cannon 6 | . 3 2 . 1 Launcher 4 | . 1 3 . . Special Weapon 1 | . 1 . . . Impact Weapon 1 | . . 1 . . Slashing Weapon . | . . . . . Piercing Weapon 2 | . . 1 . 1 Special Melee Weapon . | . . . . . Unidentified Prototypes 2 | . . 1 . 1 Parts Lost 10 | . 1 8 . 1 Power 2 | . 1 1 . . Propulsion 3 | . . 3 . . Utility 3 | . . 2 . 1 Weapon 2 | . . 2 . . Highest Loss Streak 6 | . 1 6 . 1 To Critical Strikes . | . . . . . Average Backups 12 | 5 11 14 12 13 Power 1 | . . 1 1 1 Propulsion 1 | 3 2 1 . 1 Utility 3 | . 3 4 3 3 Weapon 6 | 1 4 6 7 7 Tool/Special . | . . . . . Unused Backups 17 | . 5 2 . 10 Power 1 | . 1 . . . Propulsion 4 | . 2 . . 2 Utility 4 | . . 1 . 3 Weapon 8 | . 2 1 . 5 Tool/Special . | . . . . . Average Slot Usage (%) 99 | . 98 97 100 100 Engine 13 | . 12 13 14 14 Treads 22 | . 18 23 4 27 Wheel 5 | . 9 2 23 . Device 2 | . 13 1 . . Storage 14 | . 14 16 16 14 Protection 10 | . . 10 11 14 Energy Cannon 2 | . . 9 . . Ballistic Cannon 21 | . 20 10 23 26 Piercing Weapon 1 | . . . 4 1 Peak Build Rating 26 | 9 9 17 15 26 Average Rating 12 | 5 8 11 13 13 On Entrance 8 | . 9 9 13 13 Avg Prop Armor Cover (%) 3 | . 5 12 3 . Naked Turns . | . . . . . Heaviest Build 92 | 14 92 44 41 42 Greatest Support 43 | 26 40 40 43 43 Greatest Overweight (x) 4 | 1 4 4 4 1 Average Overweight (x) . | . . . 1 . Largest Inventory Capacity 25 | 8 25 15 15 15 Average Capacity 15 | 7 16 15 15 15 Most Carried 17 | 8 17 15 15 15 Average Carried 14 | 5 11 14 14 14 Final Capacity 15 | 8 15 15 15 15 Final Carried 15 | 8 15 15 15 15 Class Distribution -------------------- 92% | Mutant 4% | Commander-Mutant 3% | Scavenger-Mutant Dominant Class ---------------- Mutant | -10/Materials Mutant | -10/Subcaves Mutant | -9/Recycling Mutant | -9/Scraptown Resources | -11 -10 -10 -9 -9 ----------- Run | Yrd Mat Sub Rec Scr Matter Collected 1919 | 320 654 720 150 75 Remotely . | . . . . . Salvage Created 2370 | 155 813 491 786 125 Parts 124 | 9 43 34 32 6 Haulers Intercepted 1 | . 1 . . . Recyclers Shooed 10 | . 5 . 5 . Parts Field Recycled . | . . . . . Retrieved Matter . | . . . . . Parts Self-Destructed 14 | . . 14 . . Prevented . | . . . . . Parts Restored . | . . . . . Kills | -11 -10 -10 -9 -9 ------- Run | Yrd Mat Sub Rec Scr Combat Hostiles Destroyed 43 | . 16 22 3 2 Melee 3 | . . . 1 2 Guns 5 | . 5 . . . Cannons 24 | . 11 11 2 . AOE 10 | . . 10 . . Classes Destroyed 13 | 2 6 2 2 1 Worker 2 | . 2 . . . Tunneler 2 | 2 . . . . Hauler 1 | . 1 . . . Recycler 16 | 1 5 . 10 . Mechanic 1 | . 1 . . . Turret 2 | . . 2 . . Watcher 3 | . 3 . . . Swarmer 16 | . 9 7 . . Grunt 7 | . 7 . . . Duelist 2 | . . . 2 . Sentry 1 | . . . 1 . Subdweller 15 | . . 15 . . Bolteater 1 | . . . . 1 Thug 1 | . . . . 1 Best Kill Streak 6 | 2 6 5 5 1 Combat Bots Only 6 | . 6 4 2 1 Max Kills in Single Turn 4 | 1 2 4 1 1 Gunslinging . | . . . . . Exploded 4 | . . 4 . . Melee 1 | . . . 1 1 Uniques/NPCs Destroyed . | . . . . . Combat | -11 -10 -10 -9 -9 -------- Run | Yrd Mat Sub Rec Scr Hostile Shots Fired 209 | . 69 113 1 26 Missed 61 | . 17 41 . 3 Hits 148 | . 52 72 1 23 Melee 4 | . . . 1 3 Projectile 144 | . 52 72 . 20 AOE 2 | . . 2 . . Critical Strikes 4 | . . 2 . 2 Damage Taken 2162 | . 519 1209 36 398 Core 273 | . 71 125 . 77 Absorbed by Shields . | . . . . . Core Remaining (%) 100 | 100 . . . . Volleys Fired 164 | 10 77 67 10 . Largest 2 | 2 2 2 2 . Hottest 113 | 40 100 113 63 . Shots Fired 293 | 20 146 107 20 . Gun 73 | 20 51 2 . . Cannon 188 | . 87 81 20 . Launcher 21 | . . 21 . . Special 11 | . 8 3 . . Kinetic 220 | 20 138 42 20 . Thermal 52 | . 8 44 . . Explosive 21 | . . 21 . . Electromagnetic . | . . . . . Robot Hit Streak 13 | 9 13 12 5 . Robot Miss Streak 5 | 2 5 2 2 . Penetration Max . | . . . . . Secondary Targets . | . . . . . Shots Hit Robots 185 | 14 75 66 28 2 Core Hits 91 | 6 35 37 12 1 Critical Kills 1 | . . 1 . . Critical Parts Destroyed . | . . . . . Critical Strikes 5 | . . 2 3 . Meltdown 1 | . . 1 . . Blast 1 | . . 1 . . Impale 3 | . . . 3 . Melee Attacks 48 | . . 15 25 8 Thermal 4 | . . . . 4 Impact 12 | . . 12 . . Slashing . | . . . . . Piercing 32 | . . 3 25 4 Sneak Attacks 11 | . . . 11 . Combat Hostiles . | . . . . . Follow-up Attacks . | . . . . . Damage Inflicted 4698 | 135 1210 2273 974 106 Guns 537 | 135 382 20 . . Cannons 2186 | . 813 1122 251 . Explosions 1098 | . . 1098 . . Melee 862 | . . 33 723 106 Ramming 15 | . 15 . . . Kinetic 2128 | 135 1195 547 251 . Thermal 667 | . . 595 . 72 Explosive 1098 | . . 1098 . . Electromagnetic . | . . . . . Impact 33 | . . 33 . . Slashing . | . . . . . Piercing 757 | . . . 723 34 Highest Corruption . | . . . . . Average Corruption . | . . . . . Corruption Purged . | . . . . . Corruption Blocked . | . . . . . Overload Shots . | . . . . . Overflow Damage 320 | . 2 50 236 32 Projectiles 25 | . 2 16 7 . Explosions 34 | . . 34 . . Melee 261 | . . . 229 32 Knockbacks 16 | . 8 2 6 . Impact . | . . . . . Kinetic 14 | . 8 2 4 . Secondary 2 | . . . 2 . Self-Inflicted Damage 102 | . . 102 . . Shots 6 | . . 6 . . Rammed 4 | . 4 . . . Targets Rammed 4 | . 4 . . . Kicked . | . . . . . Crushed . | . . . . . Highest Temperature 463 | . 160 60 240 463 Average Temperature 72 | . 63 18 103 150 Received Heat Transfer 500 | . 96 138 . 266 Effects 3 | . . . 1 2 Energy Bleed 1 | . . . 1 . Short Circuit 1 | . . . . 1 Damage (minor) 1 | . . . . 1 Siege Activations . | . . . . . Martial Activations . | . . . . . Shielding Activations . | . . . . . Robots Disrupted . | . . . . . Combat Hostiles . | . . . . . Robots Corrupted . | . . . . . Combat Hostiles . | . . . . . Parts Fried . | . . . . . Impact Corruptions . | . . . . . Robots Melted 1 | . . 1 . . Combat Hostiles 1 | . . 1 . . Parts Melted . | . . . . . Heat Transferred 1144 | . . 1024 . 120 Parts Sabotaged . | . . . . . Parts Stolen . | . . . . . Parts Stripped . | . . . . . Power Chain Reactions . | . . . . . Alert | -11 -10 -10 -9 -9 ------- Run | Yrd Mat Sub Rec Scr Maximum Alert Level 1 | . 1 . . . Low Security (%) 99 | 100 99 . 100 . Level 1 . | . . . . . Level 2 . | . . . . . Level 3 . | . . . . . Level 4 . | . . . . . Level 5 . | . . . . . High Security . | . . . . . Max Security . | . . . . . Peak Influence 201 | 5 201 . 65 . Initial . | . . . . . Average 61 | . 94 . 18 . Influence Increases 1261 | 15 618 280 348 . Destroy 0b10 Robot/C 560 | . 320 180 60 . Destroy 0b10 Robot/NC 125 | 15 60 . 50 . Destroy Leader 78 | . 68 10 . . Successful Hack 35 | . 14 . 21 . Select Force Hacks 270 | . 60 . 210 . Disable Machine 30 | . 30 . . . Destroy Structure 13 | . 6 . 7 . Lose Combat Pursuer 150 | . 60 90 . . Influence Decreases 1261 | 15 591 307 348 . Entered New Map 14 | . . 14 . . Time Decay 1124 | 15 500 283 326 . Lost Part 20 | . 10 10 . . Purge Threat 103 | . 81 . 22 . Squads Dispatched 3 | . 3 . . . Investigation 2 | . 2 . . . Extermination . | . . . . . Reinforcement 1 | . 1 . . . Assault . | . . . . . Garrison . | . . . . . Intercept . | . . . . . Searches Triggered . | . . . . . Construction Impeded . | . . . . . Haulers Reinforced . | . . . . . Active Scanning Responses . | . . . . . Cargo Convoy Interrupts . | . . . . . Stealth | -11 -10 -10 -9 -9 --------- Run | Yrd Mat Sub Rec Scr Distress Signals 2 | . 2 . . . Communications Jammed . | . . . . . Distress Signals . | . . . . . Times Spotted 65 | . 25 26 3 11 Peak Tracking Total 7 | . 5 6 1 7 Tactical Retreats 3 | . 2 1 . . Traps | -11 -10 -10 -9 -9 ------- Run | Yrd Mat Sub Rec Scr Traps Triggered 1 | . 1 . . . Indirectly . | . . . . . Trap Hack Attempts . | . . . . . Triggered . | . . . . . Disarmed . | . . . . . Reprogrammed . | . . . . . Reused . | . . . . . Traps Extracted . | . . . . . Installed 1 | . . 1 . . Triggered . | . . . . . Machines | -11 -10 -10 -9 -9 ---------- Run | Yrd Mat Sub Rec Scr Machines Disabled 5 | . 2 2 . 1 Max in Single Turn 1 | . 1 1 . 1 Machines Repaired . | . . . . . Machines Dismantled . | . . . . . Machines Sabotaged . | . . . . . Overloaded Fab Kills . | . . . . . Hacking | -11 -10 -10 -9 -9 --------- Run | Yrd Mat Sub Rec Scr Machines Accessed 26 | . 9 . 12 5 Terminals 11 | . 7 . 4 . Fabricators . | . . . . . Repair Stations . | . . . . . Recycling Units 10 | . 2 . 8 . Scanalyzers . | . . . . . Garrison Access . | . . . . . Total Hacks 77 | . 22 . 23 32 Successful 59 | . 12 . 15 32 Failed 18 | . 10 . 8 . Catastrophic . | . . . . . Database Lockouts . | . . . . . Manual 47 | . 26 . 21 . Terminals 32 | . 20 . 12 . Fabricators . | . . . . . Repair Stations . | . . . . . Recycling Units 13 | . 2 . 11 . Scanalyzers . | . . . . . Garrison Access . | . . . . . Terminal Hacks 41 | . 5 . 4 32 Record 25 | . . . . 25 Robot Analysis 9 | . 2 . 1 6 Terminal Index 2 | . 1 . 1 . Unreport Threat 2 | . 1 . 1 . Locate Traps 1 | . 1 . . . Security Status 1 | . . . 1 . Proto ID Catalog 1 | . . . . 1 Fabricator Hacks . | . . . . . Repair Station Hacks . | . . . . . Recycling Unit Hacks . | . . . . . Scanalyzer . | . . . . . Garrison Access Hacks . | . . . . . Unauthorized Hacks 18 | . 7 . 11 . Terminals 9 | . 5 . 4 . Track 1 | . . . 1 . Botnet 8 | . 5 . 3 . Fabricators . | . . . . . Repair Stations . | . . . . . Recycling Units 9 | . 2 . 7 . Tunnel 9 | . 2 . 7 . Scanalyzers . | . . . . . Garrison Access . | . . . . . Data Cores Recovered . | . . . . . Used . | . . . . . Hacking Detections 12 | . 7 . 5 . Full Trace Events . | . . . . . Feedback Events . | . . . . . Feedback Blocked . | . . . . . Robot Schematics Acquired . | . . . . . Robots Built . | . . . . . Authchips . | . . . . . Time . | . . . . . Total Robot Build Rating . | . . . . . Part Schematics Acquired . | . . . . . Parts Built . | . . . . . Authchips . | . . . . . Time . | . . . . . Total Part Build Rating . | . . . . . Part Studies Acquired . | . . . . . Parts Repaired . | . . . . . Time . | . . . . . Parts Recycled . | . . . . . Recycled Matter . | . . . . . Retrieved Matter . | . . . . . Retrieved Components . | . . . . . Parts Scanalyzed . | . . . . . Part Schematics Acquired . | . . . . . Parts Damaged . | . . . . . Bothacking | -11 -10 -10 -9 -9 ------------ Run | Yrd Mat Sub Rec Scr Used RIF Installer . | . . . . . Robots Hacked . | . . . . . Non-combat . | . . . . . Combat . | . . . . . Robot Hacks Applied . | . . . . . Relay Couplers Released . | . . . . . Fabnet Peak Effective % . | . . . . . Robots Rewired 5 | . . . 5 . Allies Hacked . | . . . . . Hacks Repelled . | . . . . . Allies | -11 -10 -10 -9 -9 -------- Run | Yrd Mat Sub Rec Scr Total Allies 5 | . . . 5 . Largest Group 5 | . . . 5 1 Highest-Rated Group 44 | . . . 44 6 Highest-Rated Ally 10 | . . . 10 6 Total Orders 4 | . . . 4 . ROAM 2 | . . . 2 . TUNNEL 1 | . . . 1 . COLLECT 1 | . . . 1 . Ally Attacks . | . . . . . Total Damage . | . . . . . Kills . | . . . . . Allies Corrupted . | . . . . . Allies Melted 3 | . . . . 3 Intel | -11 -10 -10 -9 -9 ------- Run | Yrd Mat Sub Rec Scr Active Infowar (turns) 1883 | 29 1705 149 . . Terrain 489 | 29 460 . . . Seismic 1394 | . 1245 149 . . Robot Analysis Total 9 | . 2 . 1 6 Derelict Logs Recovered . | . . . . . Drone Launches . | . . . . . Drone Recoveries . | . . . . . Exploration | -11 -10 -10 -9 -9 ------------- Run | Yrd Mat Sub Rec Scr Turns Passed 9646 | 132 1711 2047 1115 4641 Spaces Moved 5396 | 93 764 1063 684 2792 Core 10 | 10 . . . . Treads 4115 | . 483 788 115 2729 Legs . | . . . . . Wheels 1271 | 83 281 275 569 63 Hover . | . . . . . Flight . | . . . . . Fastest Speed 50 | 50 90 107 107 105 Average Speed 153 | 90 161 157 123 158 Slowest Speed 480 | 100 480 240 320 160 Overloaded Moves . | . . . . . Propulsion Burnouts . | . . . . . Robots Hopped . | . . . . . Potential Cave-ins . | . . . . . Cave-ins Triggered . | . . . . . Exploration Rate (%) 66 | 3 95 50 91 92 Regions Visited 4 Branch Regions 3 Pre-discovered Areas 11 | . 2 1 7 1 Known Exits Taken . | . . . . . Unknown Exits Taken 4 | 1 1 1 1 . Scrap Searched 11 | . . 4 . 7 Spaces Dug 15 | . 1 7 7 . Terrain Destroyed 85 | . 7 71 7 . Melee 12 | . . 5 7 . Projectile 9 | . 7 2 . . AOE 64 | . . 64 . . Terrain Rammed . | . . . . . Walls Destroyed . | . . . . . Machines Disabled . | . . . . . Actions | -11 -10 -10 -9 -9 --------- Run | Yrd Mat Sub Rec Scr Total 6402 | 118 1083 1302 906 2993 Wait 531 | . 175 98 101 157 Move 5392 | 92 763 1062 683 2792 Hop . | . . . . . Pick Up 60 | 8 23 14 2 13 Fast Attach 15 | 7 2 5 1 . Attach 13 | . 4 9 . . Detach 3 | . 1 1 1 . Swap 50 | 1 14 19 5 11 Drop 47 | . 20 11 4 12 Fire 164 | 10 77 67 10 . Melee 48 | . . 15 25 8 Ram . | . . . . . Kick . | . . . . . Crush 4 | . 4 . . . Escape Stasis . | . . . . . Rewire 74 | . . . 74 . Trap 1 | . . 1 . . Miscellaneous . | . . . . . Route ------- -11/Scrapyard -10/Materials (discovered 6 exits: [*Mat x3] / [*Min x2] / [*Sub]) -10/Subcaves (discovered 3 exits: [*Mat] / *Rec / *Scr) -9/Recycling (discovered 2 exits: [*Fac] / *Scr) -9/Scraptown (discovered 2 exits: [*Fac x2]) History --------- Turn | Location | Event 32 | -11/Scrapyard | Discovered new exit (range 16) 133 | -11/Scrapyard | Entered Materials 307 | -10/Materials | Build established: Mutant 347 | -10/Materials | Discovered new exit (range 7) 753 | -10/Materials | Discovered new exit (range 12) 1514 | -10/Materials | Discovered new exit (range 16) 1635 | -10/Materials | Discovered new exit (range 14) 1744 | -10/Materials | Discovered new exit (range 15) 1833 | -10/Materials | Discovered new exit (range 7) 1844 | -10/Materials | Entered Subcaves 1845 | -10/Subcaves | Approached by a straggling Scientist 1852 | -10/Subcaves | Learned location of Zion (-7) 1852 | -10/Subcaves | Met a Zionite searching for "candidates" 1938 | -10/Subcaves | A swath of the cavern ceiling suddenly collapsed 2074 | -10/Subcaves | A Subdweller sparked back to life 2074 | -10/Subcaves | A Subdweller sparked back to life 2074 | -10/Subcaves | A Subdweller sparked back to life 2080 | -10/Subcaves | Ambushed by Subdweller buried in earth 2128 | -10/Subcaves | Found Prototype Device 2128 | -10/Subcaves | Identified Power Bank 2130 | -10/Subcaves | Attached Power Bank, gained temporary slots: Power x3 2164 | -10/Subcaves | Discovered new exit (range 9) 2377 | -10/Subcaves | Discovered new exit (range 11) 2700 | -10/Subcaves | Core integrity fell below 50% 2968 | -10/Subcaves | Scientist uncovered a shortcut to Scraptown 3013 | -10/Subcaves | Shifting Twisted Machinery released Battle Cannon 3033 | -10/Subcaves | Shifting Twisted Machinery released Sub. Laser 3572 | -10/Subcaves | Lost 6 parts (1p3n1u1w) 3891 | -10/Subcaves | Entered Recycling 4851 | -9/Recycling | Discovered new exit (range 14) 4869 | -9/Recycling | Build established: Commander-Mutant 4884 | -9/Recycling | Scanned before Scraplab entrance 4950 | -9/Recycling | Entered Scraplab 4963 | -9/Recycling | Discovered new exit (range 4) 5006 | -9/Recycling | Entered Scraptown 5006 | -9/Scraptown | Accompanied by 1 ally 5268 | -9/Scraptown | Build established: Mutant 5342 | -9/Scraptown | Visited Fellowship of the Rings 5397 | -9/Scraptown | Learned location of Extension (-6) 5706 | -9/Scraptown | Heard Great Nut preacher, LISTEN AND RECITE! 5834 | -9/Scraptown | Discovered new exit (range 5) 6008 | -9/Scraptown | Visited Spacefarers 6106 | -9/Scraptown | Visited Awakened 6336 | -9/Scraptown | Visited Red Mages 6426 | -9/Scraptown | Visited Observation Area 6493 | -9/Scraptown | Visited CPS Storage 6885 | -9/Scraptown | Visited UFD Registry 6910 | -9/Scraptown | Registered with UFD as "Carbonbucket" 7270 | -9/Scraptown | Visited Cartography Club 7362 | -9/Scraptown | Visited Botcube Research 7408 | -9/Scraptown | Visited Science Testing Area 7466 | -9/Scraptown | Visited LU-1G1's Boring Crew 7576 | -9/Scraptown | Delivered Scrap Shield to a Scientist 7754 | -9/Scraptown | Visited DA-N13 Charitable Foundation 7790 | -9/Scraptown | Found DCF Scrap (27 items) 7885 | -9/Scraptown | Visited Analyses Database 7918 | -9/Scraptown | Visited A0-MCA Data Center 7928 | -9/Scraptown | Given an A rating by A0-MCA 7936 | -9/Scraptown | Found A0-MCA's Component Scanner 7971 | -9/Scraptown | Visited Science Guys 8027 | -9/Scraptown | Visited Scrapoid Pod Storage 8056 | -9/Scraptown | Visited Junk Repository 8283 | -9/Scraptown | Discovered new exit (range 5) 9158 | -9/Scraptown | Met Optimus 9158 | -9/Scraptown | Accepted into 0bPrime 9538 | -9/Scraptown | Civil war broke out across Scraptown 9581 | -9/Scraptown | Found Prototype Processor 9610 | -9/Scraptown | Found Thermal Lance 9623 | -9/Scraptown | Lost 6 allies 9641 | -9/Scraptown | Core integrity fell below 20% 9647 | -9/Scraptown | Destroyed by B4-WJH(j) with Overtuned Pulse Rifle Last Messages --------------- 09581_ Slug penetrates Machine. 09608_ Dropped Sub. Machine Gun. 09610_ Acquired Thermal Lance. 09617_ Slug penetrates Wall. 09617_ Slug penetrates H3-N0R(j). 09617_ H3-N0R(j) destroyed. Optimus: You really should get out of here Carbonbucket. Scraptown is unimportant, the mission is important. Take the northeast exit, it's probably the safer route. Exit location confirmed. 09620_ Slug penetrates Wall. 09625_ ZL-Z96(j): "I knew I should've stayed in 0b1." 09631_ Acquired 55 matter. 09640_ Destroyed Imp. Heat Sink. 09640_ 9O-DMN(g) destroyed. 09644_ Critical hit (Burn: +50). 09646_ Overheating: Hrd. Light Armor Plating damaged (-24). 09647_ Arm. Wheel broken. 09647_ Overheating: Short circuit. 09647_ Hrd. Light Armor Plating destroyed. Map ----- +----------------------------------------------------+ | | | | | | | | | | | | | | | | | ?????????????????????????????????????????????????? | | ?????????????????????????????????????????????????? | | ?????????????????????????????????????????????????? | | ?????????????????????????????????????????????????? | | ?????????????????????????????????????????????????? | | ?????????????????????????????????????????????????? | | ?????????????????????????????????????????????????? | | ?????????????????????????????????????????????????? | | ?????????????????????????????????????????????????? | | ?????????????????????????????????????????????????? | | ?????????????????????????????????????????????????? | | ?????????????????????###?????#####???????????????? | | ?????????????????????# #?????#"""#???????????????? | | #################???##;##????#" "#???????????????? | | "##"""##""|##"""#??##!=[#????# <%#???????????????? | | ##""!##""|##!! #### !%=#####[gj[##??????????????? | | * j !=[*jj=[=%!!% #??????????????? | | = g =![![@!*!%== !#??????????????? | | ###################;*=!!#######!###??????????????? | | ??????????????????###%*##????????????????????????? | | ????????????????????#[!!############?????????????? | | ????????????????????# !#"""""""""""#?????????????? | | ????????????????????#! #""""" X """#?????????????? | | ????????????????????# =#""" """"#?????????????? | | ????????????????????#/ "" " ""#?????????????? | | ????????????????????# """" """#?????????????? | | ########??########### " "" [ ""#?????????????? | | #=! #=!#??# """""""##=!""" &#?????????????? | | #! # =#??#" ! "##!%#"" "" "&#?????????????? | | # # #??#" "## """ "" "&#?????????????? | | #???" "#" *" "#?????????????? | | #????? ?#"![!" #?????????????? | | ### ####??????# #??##*%## ##########?????????????? | | ### ########### ##### =## ##############?????????? | | """ """"""""""" """"" "" "##""""""""""#?????????? | | ! "## """""""#?????????? | | =%! "" """""""""#?????????? | | * "## " """"#?????????? | | "## =""""#?????????? | | """"#?????????? | | """"""""""""""""""""" "## ""&""""""#?????????? | | """"""""""""""""""""" "## "" """"""#?????????? | +----------------------------------------------------+ Best States ------------- Heat Dissipation 25 Energy Generation 12 Energy Capacity 265 Matter Stores 350 Matter Capacity 350 Sight Range 16 Terrain Scan Range 16 Terrain Scan Density 10 Armor Coverage 150 Evasion (%) 44 Recoil Reduction 2 Item Schematics ----------------- None Robot Schematics ------------------ None Fabricated ------------ Nothing Repaired ---------- Nothing Studied --------- None Alien Tech Used ----------------- None Achievements -------------- Civilization 2243 For Emergencies Only Link The Feds Network Effect Challenges ------------ None Game ------ Seed LongswordMolecularTube Manual? 0 Play Time 01:01:59 Cumulative 1372.4 hours Start 2025.12.11 @ 00:58:16 End 2025.12.11 @ 02:36:04 Sessions 1 Manual Loads 0 Difficulty Rogue Special Mode None Game No. 498 Rogue 498 Adventurer 0 Explorer 0 Win Type - Total 32 Types 16/2/8/0/0/0/6/0/0/0 Lore% 88 Gallery% 84 Achievement% 49 Wizard Run 0 Options --------- Layout 1 ASCII 0 Keyboard 0 Movement Vi Keybinds 0 Fullscreen 0 Font 14/CherryShadow Map View 64x42 Zoom Use 0% Tactical HUD 1 Map Filters NONE Filters NONE Steam 1 RUN: ea9e5bb8-2810-48d3-8801-145f1bb9028e